[Event "Czech Championship 2022"]
[Site "Usti nad Labem"]
[Date "2022.05.18"]
[Round "5.9"]
[White "Hrbek, Stepan"]
[Black "Nemec, Jachym"]
[Result "0-1"]
[ECO "A11"]
[WhiteElo "2303"]
[BlackElo "2367"]
[Annotator "TA"]
[PlyCount "74"]
[EventDate "2022.05.12"]
[EventType "swiss"]
[EventCountry "CZE"]
[SourceTitle "playchess.com"]
[Source "ChessBase"]
[SourceQuality "1"]
[TimeControl "40/5400+30:1800+30"]

{[%evp 12,74,6,-9,14,5,0,-31,-35,-38,-33,-27,-30,-21,-14,-39,-17,-65,-21,-13,-51,-49,-45,-186,-88,-106,-82,-94,18,-248,-233,-236,-230,-372,-383,-426,-413,-406,-419,-453,-453,-498,-475,-560,-478,-482,-492,-769,-755,-731,-726,-994,-1003,-969,-970,-1180,-498,-574,-408,-403,-391,-406,-401,-470,-373]} 1. c4 {[%emt 0:00:45]} c6 {[%emt 0:00:20]} 2. Nf3 {[%emt 0:03:05]} d5 {[%emt 0:00:10]} 3. e3 {[%emt 0:00:13]} Nf6 {[%emt 0:00:09]} 4. Nc3 {[%emt 0:00:11]} e6 {[%emt 0:00:05]} 5. b3 {[%emt 0:00:32]} Bd6 {[%emt 0:00:26]} 6. Bb2 {[%emt 0:00:13]} O-O {[%emt 0:00:26]} 7. Be2 {[%emt 0:00:19]} b6 {[%emt 0:00:31] 7...e5 is the modern continuation. A11: English Opening: 1...c6.} 8. Qc2 {[%emt 0:06:22]} Bb7 {[%emt 0:00:53]} 9. Rg1 {[%emt 0:01:12]} Na6 {[%emt 0:00:21] Black is slightly better.} 10. g4 {[%emt 0:02:38][%cal Bg2g4,Bg4g5][%mdl 32]} e5 {[%emt 0:11:00]} 11. g5 {[%emt 0:01:38]} Nd7 {[%emt 0:01:40]} 12. a3 {[%emt 0:12:08] Against Nb4} Nc7 {[%emt 0:00:44]} 13. h4 {[%emt 0:13:30]} Qe7 {[%emt 0:01:43]} 14. h5 {[%emt 0:02:33]} (14. d4 $1 $11) 14... f5 $1 $36 {[%emt 0:05:28][%mdl 2048] Black fights for an advantage.} 15. gxf6 {[%emt 0:12:44]} Rxf6 {[%emt 0:02:27]} 16. Ng5 {[%emt 0:02:08]} Nf8 {[%emt 0:02:36]} 17. Bd3 {[%emt 0:03:57] [#]} (17. b4 $15) 17... Rh6 $146 {[%emt 0:02:17]} ({Not} 17... e4 18. Bxe4 $1 dxe4 19. Ncxe4 $14) (17... h6 $1 $19 {[%cal Rh6g5] and Black stays clearly on top.} 18. Nh7 Nxh7 19. Bxh7+ Kh8) ({Predecessor:} 17... h6 18. Nh7 Nxh7 19. Bxh7+ Kh8 20. Bg6 Raf8 21. Rg2 Rf3 22. Ne2 Qf6 23. O-O-O Rxf2 24. Rxf2 Qxf2 {0-1 (43) Hilby,C (2454)-Mishra,A (2370) Charlotte 2021}) 18. Ne2 $17 {[%emt 0:04:07][%cal Of2f4] Threatens to win with f4!} Ne8 {[%emt 0:11:41]} 19. f4 {[%emt 0:02:35]} e4 {[%emt 0:17:00] [#]} (19... Rxh5 $17 20. Ng3 Rxg5 21. fxg5 e4 22. Nxe4 (22. Nf5 Qe6 $17) 22... dxe4 23. Bxe4 Be5) 20. Ng3 $2 {[%emt 0:10:29][%mdl 8192] Black keeps a firm grip on the game.} exd3 $19 {[%emt 0:03:18]} 21. Qxd3 {[%emt 0:00:36] aiming for Nf5.} Bc8 {[%emt 0:00:25][%cal Bb7c8,Bc8f5,Bf5g6][%mdl 32] Hoping for ...Bxf4.} 22. cxd5 {[%emt 0:04:52]} (22. Qe2 $142) 22... Bxf4 $1 {[%emt 0:02:19]} 23. Nf3 {[%emt 0:03:58]} Bxg3+ {[%emt 0:02:11]} 24. Rxg3 {[%emt 0:00:04]} Rxh5 {[%emt 0:00:50]} 25. dxc6 {[%emt 0:00:50]} Bf5 {[%emt 0:02:46]} 26. Qc3 {[%emt 0:02:34]} Bg6 {[%emt 0:01:27]} 27. Ke2 {[%emt 0:02:10]} Rc5 {[%emt 0:01:55]} 28. Qb4 {[%emt 0:01:34]} Qd6 {[%emt 0:04:56]} 29. Ne5 {[%emt 0:00:15]} (29. Rg5 $142) 29... a5 {[%emt 0:06:59]} 30. Qd4 {[%emt 0:00:34]} Rd5 {[%emt 0:01:49]} 31. Qc3 {[%emt 0:00:49]} Nf6 {[%emt 0:02:15] ...Ne4 is the strong threat.} 32. Nxg6 {[%emt 0:03:34]} Nxg6 {[%emt 0:02:31]} 33. Rag1 {[%emt 0:00:26]} Rc5 {[%emt 0:01:51]} (33... Rd8 $142 {[%cal Rd5d2]} 34. Ke1 Rxd2 35. Qc4+ Kh8) 34. Qd4 {[%emt 0:01:00]} Qxd4 {[%emt 0:00:06]} 35. Bxd4 {[%emt 0:00:05]} Rxc6 {[%emt 0:00:08]} 36. Rg5 {[%emt 0:00:06]} Re8 {[%emt 0:01:58]} 37. a4 {[%emt 0:01:14]} Kf7 {[%emt 0:01:02] Weighted Error Value: White=0.60/Black=0.30} 0-1

[Event "Czech Championship 2022"]
[Site "Usti nad Labem"]
[Date "2022.05.18"]
[Round "5.10"]
[White "Mikes, Jan"]
[Black "Smolik, Jachym"]
[Result "0-1"]
[ECO "B12"]
[WhiteElo "2349"]
[BlackElo "2272"]
[Annotator "TA"]
[PlyCount "120"]
[EventDate "2022.05.12"]
[EventType "swiss"]
[EventCountry "CZE"]
[SourceTitle "playchess.com"]
[Source "ChessBase"]
[SourceQuality "1"]
[TimeControl "40/5400+30:1800+30"]

{[%evp 9,120,17,20,13,2,12,4,8,13,0,9,14,25,19,71,70,89,56,87,90,104,97,110,32,58,37,45,29,76,15,28,0,56,16,65,0,0,0,0,0,31,-92,0,0,0,-211,-217,-293,-294,-421,-418,-427,-399,-375,-139,-115,-137,-128,-89,-63,82,-38,0,-199,-170,-236,-36,-248,-248,-248,-244,-354,-124,-230,-225,-395,-395,-395,-149,-149,-149,-149,-127,-150,-106,-110,-104,-207,-202,-248,-198,-375,-375,-373,-362,-362,-143,-144,-144,-148,-127,-335,-346,-343,-335,-335,-335,-328,-328,-321,-303,-335,-313]} 1. e4 {[%emt 0:00:03]} c6 {[%emt 0:00:05]} 2. d4 {[%emt 0:00:06]} d5 {[%emt 0:00:03]} 3. e5 {[%emt 0:00:25]} c5 {[%emt 0:00:07]} 4. dxc5 {[%emt 0:00:11]} e6 {[%emt 0:00:06]} 5. a3 {[%emt 0:00:11]} Bxc5 {[%emt 0:00:06]} 6. Qg4 {[%emt 0:00:08] B12: Caro-Kann: Advance Variation.} Ne7 {[%emt 0:00:26]} 7. Nf3 {[%emt 0:01:01] b4 is the strong threat.} O-O {[%emt 0:00:17]} 8. Bd3 {[%emt 0:00:07][%cal Od3h7] The position is equal.} f5 {[%emt 0:00:35]} 9. exf6 {[%emt 0:00:07]} Rxf6 {[%emt 0:00:07][%cal Oe6e5]} 10. Qh5 {[%emt 0:00:13]} h6 {[%emt 0:03:05][%cal Oe6e5]} 11. O-O {[%emt 0:00:22] [#]} Nbc6 $146 {[%emt 0:02:31]} (11... Bd6 $11) ({Predecessor:} 11... Bd6 12. Re1 Nbc6 13. c4 Bd7 14. Nc3 Qe8 15. Qxe8+ Rxe8 16. Be3 a6 17. Rad1 Bc8 {1-0 (49) Leitao,R (2592)-Yuan,Q (2373) Chess.com INT 2022}) 12. b4 $1 $16 {[%emt 0:01:16][%cal Bb2b4,Bb4b5][%mdl 32]} Bd6 {[%emt 0:03:50]} 13. Bb2 {[%emt 0:00:56] Prevents e5.} Rf4 {[%emt 0:04:12]} 14. g3 {[%emt 0:01:21]} Rf8 {[%emt 0:08:16][%cal Ob7b5]} 15. b5 {[%emt 0:02:53]} (15. Qg4 $2 e5 16. Qh5 e4 17. Bxe4 dxe4 $19) 15... Nb8 {[%emt 0:07:32]} 16. Ne5 {[%emt 0:08:16]} (16. Qg4 $2 e5 17. Qh5 e4 18. Bxe4 dxe4 $19) (16. Re1 $1 $16) 16... Nd7 $14 {[%emt 0:02:55]} 17. Ng4 {[%emt 0:01:17][%cal Ob2g7] aiming for Bxg7!} e5 $1 {[%emt 0:23:23]} 18. Nxe5 {[%emt 0:04:19]} Nf6 {[%emt 0:06:37] Inhibits Ng4.} (18... Nc5 $11) 19. Qh4 {[%emt 0:13:12]} ({Better is} 19. Qe2 $1 $16) 19... Qc7 {[%emt 0:02:30]} 20. Re1 {[%emt 0:16:13]} Bc5 {[%emt 0:07:00]} ({Black should try} 20... Bf5 $1 $11) 21. Re2 {[%emt 0:02:31]} (21. Nc3 $5 {[%cal Rc3a4]}) 21... Qb6 {[%emt 0:08:20]} (21... a6 $11) 22. Nd2 {[%emt 0:05:55]} (22. Nc3 $1 $14) 22... Nf5 $1 $36 {[%emt 0:01:47][%mdl 2048] Black has some pressure.} 23. Bxf5 {[%emt 0:19:09]} Bxf5 {[%emt 0:00:02]} 24. a4 {[%emt 0:00:13]} a6 {[%emt 0:08:56]} 25. c4 {[%emt 0:04:34]} (25. Nb3 $14) 25... d4 {[%emt 0:00:04]} (25... axb5 $17 26. cxb5 Ne4 27. Nxe4 Bxe4) 26. a5 {[%emt 0:00:46]} Qd6 {[%emt 0:01:05] Hoping for ...Rae8.} 27. Nb3 $2 {[%emt 0:04:41]} (27. Nef3 $1 $11 {and White is okay.}) 27... d3 $19 {[%emt 0:01:08]} 28. Rd2 {[%emt 0:00:23]} Ne4 $1 {[%emt 0:01:59]} 29. Rxd3 {[%emt 0:00:24]} (29. Nxc5 $142 Nxd2 30. Qf4 (30. Nxb7 $2 Qc7 $19) 30... Qxc5 31. Qxd2 axb5 32. cxb5) 29... Bxf2+ {[%emt 0:00:28] This bishop pair is nice.} 30. Kg2 {[%emt 0:00:53]} Qe6 {[%emt 0:01:39][%cal Oe4g5]} 31. Rd7 {[%emt 0:03:29]} Nf6 $2 {[%emt 0:02:43] Really sharp!} (31... Rae8 $19 {And now ...Be3 would win.} 32. Rad1 (32. Rxb7 $2 Ng5 $19) 32... Ng5) 32. Rxg7+ $17 {[%emt 0:00:13]} (32. Kxf2 $2 Nxd7 33. Qd4 Nxe5 34. Qxe5 Bc2+ 35. Ke3 Rae8 36. Qxe6+ Rxe6+ 37. Kd4 Bxb3 $19) 32... Kxg7 {[%emt 0:00:12]} 33. Kxf2 {[%emt 0:00:06]} Kg8 {[%emt 0:00:29] Threatens to win with ...Ng4+.} 34. Kg1 {[%emt 0:01:43]} Ng4 {[%emt 0:01:25]} (34... Nd7 $15 {keeps the upper hand.} 35. Qd4 Nxe5 36. Qxe5 Qxe5 37. Bxe5 Rfc8 38. bxa6 Rxa6) 35. Re1 {[%emt 0:01:37]} ({Only move:} 35. Nc5 $16 {Threatening mate with Nxg4.} Nxe5 36. Nxe6 Nf3+ 37. Kf2 Nxh4 38. Nxf8) 35... axb5 {[%emt 0:02:33]} 36. h3 $2 {[%emt 0:05:16]} (36. Nc5 $11 {and White has nothing to worry.} Nxe5 37. Nxe6 Nf3+ 38. Kf2 Nxh4 39. Nxf8) 36... Nxe5 $19 {[%emt 0:01:12]} (36... bxc4 37. hxg4 (37. Nd4 Nxe5 38. Nxe6 Nf3+ 39. Kf2 Nxh4 $17) 37... Bh7 38. Nd4 $18) 37. Rxe5 {[%emt 0:00:04]} (37. Bxe5 $142 b4 38. g4 (38. Nd4 $2 Qg6 $19)) 37... Qg6 $2 {[%emt 0:00:42]} (37... Qxc4 38. Qxh6 $1 Qd3 39. Rxf5 Qxg3+ 40. Kh1 Qe1+ 41. Kh2 Qe2+ 42. Kh1 Qe1+ 43. Kh2 Qe2+ 44. Kh1 Qe1+ $11) (37... Qd6 $1 $19 {[%cal Rd6d1] White must now prevent ...Qd1+.} 38. Rd5 Qg6) 38. cxb5 $2 {[%emt 0:01:37]} (38. Re7 $15 Rf7 39. Rxf7 Kxf7 40. cxb5) 38... Be6 {[%emt 0:00:26][%mdl 64] Deflection} 39. Nd2 {[%emt 0:00:55]} Rad8 {[%emt 0:00:28]} (39... Rxa5 40. Rh5 Qd3 41. Rg5+ $1 hxg5 42. Qxg5+ Kf7 43. Qf6+ Ke8 44. Qxe6+ Kd8 45. Qb6+ Ke8 46. Qe6+ Kd8 47. Qb6+ Ke8 48. Qe6+ $11) 40. Re2 {[%emt 0:01:34]} (40. Bd4 $142) 40... Rd3 $2 {[%emt 0:00:35]} (40... Qc2 $1 $19 {[%cal Rc2d1] ( -> ...Qd1+)} 41. Qe4 Qxe4 42. Nxe4 Rd1+ 43. Kg2 Bd5) 41. Kh2 {[%emt 0:31:36]} (41. Be5 $17) 41... Bd5 $1 {[%emt 0:07:02][%cal Og6e6]} 42. a6 $2 {[%emt 0:00:00]} (42. Be5 {is the only way for White.}) 42... bxa6 {[%emt 0:00:28]} 43. bxa6 {[%emt 0:00:00] [#]} Qg5 $2 {[%emt 0:07:36]} (43... Qe6 $1 $19 {[%cal Re6e2][%mdl 512] is more deadly.} 44. Qg4+ (44. Rxe6 {gets mated.} Rxd2+) 44... Qxg4 45. hxg4 Rc8) 44. Qxg5+ $17 {[%emt 0:00:00]} hxg5 {[%emt 0:00:02]} 45. g4 {[%emt 0:00:00]} Kh7 {[%emt 0:03:20][%mdl 1024] Black has strong compensation.} 46. a7 {[%emt 0:00:00]} Kg6 {[%emt 0:01:45] Black is more active.} ({Don't go for} 46... Rf7 $2 47. Be5 Rxa7 48. Nf1) 47. Be5 {[%emt 0:00:00]} Re8 {[%emt 0:00:13] Strongly threatening ...Ra3.} 48. Kg1 {[%emt 0:00:00]} (48. Nf1 $17) 48... Re7 {[%emt 0:00:59]} 49. Nf1 {[%emt 0:00:00]} Rxa7 {[%emt 0:00:35]} 50. Rd2 $2 {[%emt 0:01:07]} (50. Ne3 {was worth a try.}) 50... Rxd2 $19 {[%emt 0:00:54]} 51. Nxd2 {[%emt 0:00:05][%mdl 4096] Endgame KRB-KBN} Ra2 {[%emt 0:00:08]} 52. Bc3 {[%emt 0:00:09]} Rc2 $2 {[%emt 0:00:15]} (52... Ra3 $19 {and Black stays clearly on top.} 53. Be5 Rxh3) 53. Bb4 $17 {[%emt 0:00:06]} Rc1+ {[%emt 0:00:07]} 54. Kf2 {[%emt 0:00:41]} Rh1 {[%emt 0:00:09]} 55. Nf1 $2 {[%emt 0:00:53]} (55. Kg3 $17 {was the only defense.}) 55... Rxh3 $19 {[%emt 0:00:25] Black has a decisive advantage.} 56. Ne3 {[%emt 0:00:05]} Bb7 {[%emt 0:01:23]} 57. Bd6 {[%emt 0:01:09]} Rf3+ {[%emt 0:01:12]} 58. Ke2 {[%emt 0:00:04]} Rf6 {[%emt 0:00:12]} 59. Bg3 {[%emt 0:00:56]} Bf3+ {[%emt 0:00:19]} 60. Kd2 {[%emt 0:00:22]} Ra6 {[%emt 0:00:33] Weighted Error Value: White=0.49/Black=0.41} 0-1

[Event "Czech Championship 2022"]
[Site "Usti nad Labem"]
[Date "2022.05.18"]
[Round "5.11"]
[White "Stinka, Jakub"]
[Black "Brejnik, Gustav"]
[Result "1-0"]
[ECO "D45"]
[WhiteElo "2345"]
[BlackElo "2246"]
[Annotator "TA"]
[PlyCount "61"]
[EventDate "2022.05.12"]
[EventType "swiss"]
[EventCountry "CZE"]
[SourceTitle "playchess.com"]
[Source "ChessBase"]
[SourceQuality "1"]
[TimeControl "40/5400+30:1800+30"]

{[%evp 23,61,0,0,0,8,8,16,12,5,-9,122,18,172,173,179,179,207,252,235,235,391,414,410,404,386,358,466,443,439,436,516,564,583,553,668,571,1444,1389,1499,1451]} 1. d4 {[%emt 0:00:03] Kapnisis,Spyridon} d5 {[%emt 0:00:59]} 2. c4 {[%emt 0:00:10]} c6 {[%emt 0:00:07]} 3. Nf3 {[%emt 0:00:35]} Nf6 {[%emt 0:00:12]} 4. Nc3 {[%emt 0:00:10]} e6 {[%emt 0:00:09]} 5. e3 {[%emt 0:00:42]} Nbd7 {[%emt 0:00:37]} 6. Qc2 {[%emt 0:00:49]} Bd6 {[%emt 0:00:18]} 7. b3 {[%emt 0:01:01]} O-O {[%emt 0:00:55]} 8. Be2 {[%emt 0:00:45]} b6 {[%emt 0:01:11]} 9. Bb2 {[%emt 0:00:13]} Bb7 {[%emt 0:01:30]} 10. O-O {[%emt 0:00:10]} Qe7 {[%emt 0:00:48]} 11. Rad1 {[%emt 0:01:38]} Rad8 {[%emt 0:02:06]} 12. Rfe1 {[%emt 0:00:10]} Rfe8 {[%emt 0:00:08]} 13. Bf1 {[%emt 0:00:37] D45: Semi-Slav: 5 e3.} c5 {[%emt 0:21:56]} 14. cxd5 {[%emt 0:00:09]} exd5 {[%emt 0:00:25]} 15. dxc5 {[%emt 0:01:35] The position is equal.} bxc5 {[%emt 0:01:23]} 16. Ne2 {[%emt 0:04:36] [#]} d4 $146 {[%emt 0:14:31]} (16... Bc7 $11) ({Predecessor:} 16... Bc7 17. Ng3 Ba5 18. Nf5 Qf8 19. Bc3 Bxc3 20. Qxc3 a6 21. Qa5 Rc8 22. Rc1 g6 {1-0 (46) Bacrot,E (2673)-Korobov,A (2688) Linares 2020 CBM 198 extra [Kapnisis,Spyridon]}) 17. Ng3 {[%emt 0:13:27]} ({White should play} 17. exd4 $16 Qe4 18. Qxe4 Rxe4 19. Ng3 Rxe1 20. Rxe1 (20. Nxe1 cxd4 21. Bxd4 Bc7 $16)) 17... Ne5 $2 {[%emt 0:24:19]} (17... Bxf3 $11 {and Black is okay.} 18. gxf3 Ne5) 18. Nxe5 $18 {[%emt 0:06:23]} Qxe5 {[%emt 0:00:35]} 19. exd4 {[%emt 0:17:56][%cal Be3d4,Bd4c5,Bc5c6][%mdl 32]} Qxe1 {[%emt 0:00:16]} 20. Rxe1 {[%emt 0:00:05]} Rxe1 {[%emt 0:00:04] [#]} 21. Bc3 $1 {[%emt 0:00:35]} ({Don't go for} 21. dxc5 $2 Bxg3 22. hxg3 (22. fxg3 $2 Ba6 $19) 22... Be4 $19) 21... Be4 $2 {[%emt 0:10:15]} (21... Ree8 22. dxc5 Bc7) 22. Nxe4 {[%emt 0:02:35] Dancing on a razor blade.} Rxe4 {[%emt 0:00:04]} 23. dxc5 {[%emt 0:04:12]} Be5 {[%emt 0:00:34]} 24. f3 {[%emt 0:06:03]} ({Weaker is} 24. Bd3 Bxc3 25. Bxe4 Rd2 $18) 24... Bd4+ {[%emt 0:07:47]} 25. Bxd4 {[%emt 0:00:17] White is clearly winning.} Rexd4 {[%emt 0:00:04]} 26. c6 {[%emt 0:04:34] [#] And now c7 would win.} Nd5 {[%emt 0:00:05]} 27. Qc5 {[%emt 0:06:40][%csl LRa7,LRd4]} Rd1 {[%emt 0:01:32]} 28. Kf2 {[%emt 0:04:57]} Rc8 {[%emt 0:07:45]} 29. Ba6 {[%emt 0:01:35]} Rc7 {[%emt 0:00:23]} 30. Qd6 {[%emt 0:00:36][%cal Rd6d8]} h6 {[%emt 0:01:17]} 31. Bc4 {[%emt 0:00:34] Black got outplayed after the opening.  Weighted Error Value: White=0.23 (precise) /Black=0.80} 1-0

[Event "Czech Championship 2022"]
[Site "Usti nad Labem"]
[Date "2022.05.18"]
[Round "5.12"]
[White "Babula, Vlastimil jr"]
[Black "Gnojek, Petr"]
[Result "1/2-1/2"]
[ECO "B07"]
[WhiteElo "2217"]
[BlackElo "2302"]
[Annotator "TA"]
[PlyCount "115"]
[EventDate "2022.05.12"]
[EventType "swiss"]
[EventCountry "CZE"]
[SourceTitle "playchess.com"]
[Source "ChessBase"]
[SourceQuality "1"]
[TimeControl "40/5400+30:1800+30"]

{[%evp 12,115,26,37,68,53,63,0,10,23,7,0,99,-21,14,-37,0,0,19,6,2,0,37,0,0,0,0,5,9,8,67,47,94,86,86,91,104,16,18,27,12,0,52,19,22,6,5,0,39,28,48,0,10,0,49,42,44,3,3,2,2,2,6,5,13,0,0,0,0,0,0,0,0,0,78,72,74,16,80,18,84,10,12,0,88,90,84,78,81,79,79,71,71,71,69,67,95,31,26,26,26,11,32,31,34,32]} 1. d4 {[%emt 0:00:03]} d6 {[%emt 0:00:16]} 2. e4 {[%emt 0:00:12]} Nf6 {[%emt 0:00:04]} 3. Nc3 {[%emt 0:00:11]} g6 {[%emt 0:00:06]} 4. Be3 {[%emt 0:00:35]} Bg7 {[%emt 0:00:22]} 5. Qd2 {[%emt 0:01:16]} c6 {[%emt 0:00:12]} 6. Bh6 {[%emt 0:01:50]} Bxh6 {[%emt 0:02:43]} 7. Qxh6 {[%emt 0:00:07]} Nbd7 {[%emt 0:02:14] B07: Pirc Defence: Miscellaneous Systems.} 8. O-O-O {[%emt 0:02:55][%cal Oe4e5]} e5 {[%emt 0:04:04] [#]} 9. h3 $146 {[%emt 0:11:06]} (9. Nf3 $14) ({Predecessor:} 9. Be2 b5 10. dxe5 dxe5 11. Nh3 b4 12. Na4 Qe7 13. Bc4 Nb6 14. Bb3 Bxh3 15. Qxh3 {½-½ (47) Sutovsky,E (2647)-Paehtz,T (2372) Caleta 2016}) 9... b5 $11 {[%emt 0:12:28] The position is equal.} 10. dxe5 {[%emt 0:29:05]} dxe5 {[%emt 0:00:10]} (10... Nxe5 $2 11. f4 Ned7 12. e5 $18 (12. Rxd6 b4 $14)) 11. Nf3 {[%emt 0:03:41] Nxe5 is the strong threat.} Qb6 {[%emt 0:19:54]} (11... Qe7 $11) 12. Ng5 {[%emt 0:11:45] White is more active.} ({Much weaker is} 12. Qg7 $6 Rg8 13. Qh6 Qxf2 $15) (12. Rd6 $16) 12... Qc5 {[%emt 0:07:44]} 13. Kb1 {[%emt 0:03:50]} (13. f4 $11) 13... b4 {[%emt 0:05:34]} ({Black should play} 13... Qf8 $15 14. Qxf8+ Kxf8) 14. Na4 {[%emt 0:00:36]} Qf8 {[%emt 0:00:04]} 15. Qxf8+ {[%emt 0:05:02]} Rxf8 {[%emt 0:00:09]} 16. Bd3 $36 {[%emt 0:03:07][%mdl 2048] White has good play.} (16. Bc4 {looks sharper.} Ke7 17. c3 a5 18. Rhe1) 16... Bb7 {[%emt 0:02:42]} (16... Nb6 $5 {[%cal Rb6a4]} 17. Nc5 Ke7 $14) 17. f4 {[%emt 0:01:23]} exf4 {[%emt 0:03:56]} 18. e5 {[%emt 0:00:29]} Nd5 {[%emt 0:00:33]} 19. e6 {[%emt 0:00:27]} fxe6 {[%emt 0:00:54]} 20. Nxe6 {[%emt 0:00:17]} Rf6 {[%emt 0:00:05]} (20... Rf7 $11) 21. Rhe1 $14 {[%emt 0:03:07] And now Nec5+ would win.} Ne3 {[%emt 0:04:53] [#]} (21... Rb8 $14 {feels stronger.}) 22. Nxf4 $1 $16 {[%emt 0:00:49][%mdl 64] Remove Defender} Rxf4 {[%emt 0:00:03]} 23. Rxe3+ {[%emt 0:00:05]} Kf8 {[%emt 0:00:03]} 24. Be2 {[%emt 0:04:20]} (24. Rde1 $16) 24... Re8 $11 {[%emt 0:01:07]} 25. Rxe8+ {[%emt 0:00:05]} Kxe8 {[%emt 0:00:03]} 26. Bf3 {[%emt 0:00:07]} Rf6 {[%emt 0:07:40]} (26... Ke7 $11) 27. b3 {[%emt 0:01:02]} Ke7 {[%emt 0:00:11]} 28. a3 {[%emt 0:06:18]} bxa3 {[%emt 0:04:04]} 29. Ka2 {[%emt 0:00:07]} Bc8 {[%emt 0:02:13]} 30. Re1+ {[%emt 0:01:30][%mdl 1024] White has compensation.} Kd6 {[%emt 0:01:18]} 31. Rd1+ {[%emt 0:00:46]} (31. Nc3 $5 {[%cal Rc3e4]} Rf5 32. Re8 $14 (32. Kxa3 Re5 $11)) 31... Ke7 {[%emt 0:00:35]} 32. Re1+ {[%emt 0:00:07]} Kd6 {[%emt 0:00:02]} 33. Nc3 {[%emt 0:01:21] Black must now prevent Ne4+.} Rf5 $1 {[%emt 0:08:52]} 34. Bg4 {[%emt 0:02:01]} (34. Re8 $5 {[%cal Re8c8]} Kc7 35. Kxa3 $14) 34... Re5 {[%emt 0:00:33]} 35. Rd1+ {[%emt 0:00:06]} Kc7 {[%emt 0:00:24]} 36. Kxa3 {[%emt 0:00:33]} h5 {[%emt 0:00:05]} 37. Bf3 {[%emt 0:00:16]} Nc5 {[%emt 0:01:04]} 38. b4 {[%emt 0:02:52]} Ne6 {[%emt 0:01:26]} 39. Be4 {[%emt 0:01:11]} g5 {[%emt 0:02:09]} 40. Rf1 {[%emt 0:00:24]} Nd4 {[%emt 0:02:27]} 41. Rf7+ {[%emt 0:33:00]} Bd7 {[%emt 0:09:12]} 42. Bd3 {[%emt 0:00:00]} Re3 {[%emt 0:07:19]} (42... Kd8 $11) 43. Kb2 $16 {[%emt 0:00:00]} Kd8 {[%emt 0:00:17]} 44. Rf8+ {[%emt 0:00:00]} (44. Ne4 $1 $16) 44... Kc7 {[%emt 0:05:14]} (44... Re8 $11 45. Rf7 Re3) 45. Ra8 {[%emt 0:00:00]} ({White should try} 45. Ne4 $1 $16) 45... Kb7 {[%emt 0:00:32]} (45... Bf5 $11 {keeps the balance.}) 46. Rd8 {[%emt 0:00:00]} (46. Rg8 $1 $16 {[%cal Rg8g5]}) 46... Kc7 $11 {[%emt 0:00:06]} 47. Ra8 {[%emt 0:00:00]} (47. Rf8 $11) 47... Kb7 $16 {[%emt 0:00:39] [#]} 48. Rg8 {[%emt 0:00:00]} g4 {[%emt 0:05:42]} 49. hxg4 {[%emt 0:00:00]} Bxg4 {[%emt 0:01:19]} 50. Ne4 {[%emt 0:00:00] Hoping for Kc3.} Ne6 {[%emt 0:02:11]} 51. Re8 {[%emt 0:00:00] aiming for Re7+.} Kc7 {[%emt 0:00:03]} 52. Re7+ {[%emt 0:00:00]} Kd8 {[%emt 0:00:05]} 53. Rxa7 {[%emt 0:00:00]} Nf4 {[%emt 0:00:04] [#]} 54. Nc5 {[%emt 0:00:00]} (54. Kc3 $1 $16) 54... Nxd3+ $14 {[%emt 0:01:23]} 55. Nxd3 {[%emt 0:00:00]} Re2 {[%emt 0:00:05]} 56. Kc3 {[%emt 0:00:00]} Bf5 {[%emt 0:01:48]} ({Resist} 56... Rxg2 57. Ne5 $14) 57. Rg7 {[%emt 0:00:00]} h4 {[%emt 0:01:09]} 58. Rg5 {[%emt 0:01:54] Weighted Error Value: White=0.21 (precise) /Black=0.21 (precise)} 1/2-1/2